[Event "ESP-chT 2nd Division 2019"]
[Site "Linares"]
[Date "2019.08.21"]
[Round "4.6"]
[White "Cruz Lledo, Pablo"]
[Black "Suarez Gomez, Julio"]
[Result "0-1"]
[ECO "D04"]
[WhiteElo "2445"]
[BlackElo "2433"]
[Annotator "ChessBase"]
[PlyCount "164"]
[EventDate "2019.08.19"]
[EventType "team-tourn"]
[EventCountry "ESP"]
[SourceTitle "playchess.com"]
[Source "ChessBase"]
[SourceQuality "1"]
[TimeControl "5400+30"]

1. d4 {[%emt 0:02:18]} Nf6 {[%emt 0:00:00]} 2. Nf3 {[%emt 0:00:04]} d5 {[%emt 0:00:11]} 3. e3 {[%emt 0:00:07]} c5 {[%emt 0:02:11]} 4. c4 {[%emt 0:01:01]} e6 {[%emt 0:01:04]} 5. cxd5 {[%emt 0:04:11]} exd5 {[%emt 0:00:04]} 6. Bb5+ {[%emt 0:00:08]} Bd7 {[%emt 0:00:11]} 7. Bxd7+ {[%emt 0:00:18]} Nbxd7 {[%emt 0:00:07]} 8. dxc5 {[%emt 0:00:14]} Nxc5 {[%emt 0:00:58]} 9. O-O {[%emt 0:00:06]} Be7 {[%emt 0:01:49]} 10. b3 {[%emt 0:00:17]} O-O {[%emt 0:00:09]} 11. Bb2 {[%emt 0:00:08]} Rc8 {[%emt 0:07:01]} 12. Nc3 {[%emt 0:04:51]} Qd7 {[%emt 0:03:27]} 13. Ne2 {[%emt 0:02:15]} Rfd8 {[%emt 0:06:21]} 14. Bd4 {[%emt 0:04:19]} b5 {[%emt 0:05:54]} 15. Ng3 {[%emt 0:00:21]} Nfe4 {[%emt 0:03:55]} 16. Ne5 {[%emt 0:03:00]} Qe6 {[%emt 0:02:51]} 17. Nd3 {[%emt 0:00:16]} Bd6 {[%emt 0:07:47]} 18. Nxc5 {[%emt 0:03:55]} Nxc5 {[%emt 0:05:53]} 19. Qh5 {[%emt 0:01:35]} g6 {[%emt 0:07:18]} 20. Qe2 {[%emt 0:05:03]} a6 {[%emt 0:00:10]} 21. Rac1 {[%emt 0:00:52]} Nd7 {[%emt 0:04:39]} 22. a4 {[%emt 0:05:10]} Bxg3 {[%emt 0:05:10]} 23. hxg3 {[%emt 0:00:22]} bxa4 {[%emt 0:00:05]} 24. bxa4 {[%emt 0:00:17]} Rc4 {[%emt 0:00:54]} 25. Rxc4 {[%emt 0:09:55]} dxc4 {[%emt 0:00:08]} 26. Rc1 {[%emt 0:00:12]} Rc8 {[%emt 0:00:55]} 27. g4 {[%emt 0:03:48]} Qd5 {[%emt 0:04:49]} 28. Qb2 {[%emt 0:06:22]} Nf8 {[%emt 0:02:50]} 29. Qb6 {[%emt 0:02:21]} Qe6 {[%emt 0:05:54]} 30. Qa5 {[%emt 0:00:34]} Nd7 {[%emt 0:01:33]} 31. g5 {[%emt 0:00:40]} Qd6 {[%emt 0:01:07]} 32. Ba1 {[%emt 0:10:57]} f6 {[%emt 0:05:42]} 33. Qc3 {[%emt 0:03:07]} Kf7 {[%emt 0:00:03]} 34. gxf6 {[%emt 0:00:45]} Rc5 {[%emt 0:00:05]} 35. Qb4 {[%emt 0:03:30]} a5 {[%emt 0:00:37]} 36. Qb7 {[%emt 0:01:08]} Qd2 {[%emt 0:05:14]} 37. Bb2 {[%emt 0:00:31]} Rf5 {[%emt 0:00:56]} 38. Rf1 {[%emt 0:00:21]} Qd6 {[%emt 0:01:48]} 39. e4 {[%emt 0:01:34]} Rc5 {[%emt 0:00:14]} 40. e5 {[%emt 0:00:38]} Qc6 {[%emt 0:00:03]} 41. e6+ {[%emt 0:03:40]} Kxe6 {[%emt 0:00:05]} 42. Re1+ {[%emt 0:00:08]} Kf5 {[%emt 0:00:07]} 43. Qa7 {[%emt 0:04:14]} c3 {[%emt 0:01:10]} 44. f7 {[%emt 0:00:24]} Qc7 {[%emt 0:02:17]} 45. Qa6 {[%emt 0:10:26]} cxb2 {[%emt 0:00:34]} 46. Qe6+ {[%emt 0:00:10]} Kg5 {[%emt 0:00:07]} 47. Qe7+ {[%emt 0:00:52]} Kh5 {[%emt 0:04:29]} 48. g3 {[%emt 0:01:01]} Rg5 {[%emt 0:01:06]} 49. f8=Q {[%emt 0:00:46]} Rxg3+ {[%emt 0:00:29]} 50. fxg3 {[%emt 0:00:27]} Qxg3+ {[%emt 0:00:09]} 51. Kf1 {[%emt 0:00:08]} Qh3+ {[%emt 0:01:38]} 52. Kf2 {[%emt 0:00:19]} Qh2+ {[%emt 0:00:31]} 53. Kf3 {[%emt 0:03:04]} Qh3+ {[%emt 0:00:04]} 54. Kf4 {[%emt 0:01:31]} Qh2+ {[%emt 0:00:59]} 55. Ke4 {[%emt 0:00:33]} Nxf8 {[%emt 0:01:05]} 56. Qe5+ {[%emt 0:02:02]} Qxe5+ {[%emt 0:00:04]} 57. Kxe5 {[%emt 0:00:01]} Nd7+ {[%emt 0:00:04]} 58. Kf4 {[%emt 0:00:02]} Kh6 {[%emt 0:00:05]} 59. Ke3 {[%emt 0:01:35]} Nc5 {[%emt 0:00:15]} 60. Kd2 {[%emt 0:00:27]} Nxa4 {[%emt 0:00:03]} 61. Kc2 {[%emt 0:00:05]} g5 {[%emt 0:00:33]} 62. Rh1+ {[%emt 0:00:23]} Kg6 {[%emt 0:00:05]} 63. Kb3 {[%emt 0:00:04]} Nc5+ {[%emt 0:03:05]} 64. Kxb2 {[%emt 0:00:01]} h5 {[%emt 0:00:10]} 65. Kc3 {[%emt 0:00:01]} g4 {[%emt 0:00:28]} 66. Kc4 {[%emt 0:01:12]} Nd7 {[%emt 0:01:01]} 67. Ra1 {[%emt 0:00:16]} g3 {[%emt 0:00:43]} 68. Kd4 {[%emt 0:00:21]} Kf5 {[%emt 0:01:05]} 69. Ke3 {[%emt 0:00:33]} Kg4 {[%emt 0:00:35]} 70. Ra4+ {[%emt 0:00:20]} Kh3 {[%emt 0:00:31]} 71. Rxa5 {[%emt 0:00:06]} Nf6 {[%emt 0:00:23]} 72. Kf3 {[%emt 0:01:01]} h4 {[%emt 0:00:47]} 73. Ra4 {[%emt 0:01:51]} Nd7 {[%emt 0:00:21]} 74. Re4 {[%emt 0:00:12]} Nc5 {[%emt 0:00:47]} 75. Re1 {[%emt 0:00:13]} g2 {[%emt 0:00:27]} 76. Rg1 {[%emt 0:01:27]} Nd3 {[%emt 0:00:04]} 77. Rd1 {[%emt 0:00:05]} Kh2 {[%emt 0:00:38]} 78. Rd2 {[%emt 0:00:28]} h3 {[%emt 0:00:27]} 79. Kg4 {[%emt 0:00:02]} Ne5+ {[%emt 0:00:30]} 80. Kf4 {[%emt 0:01:09]} Kh1 {[%emt 0:00:06]} 81. Kg3 {[%emt 0:00:39]} g1=Q+ {[%emt 0:00:08]} 82. Kxh3 {[%emt 0:00:04]} Qg4# 0-1

[Event "ESP-chT 2nd Division 2019"]
[Site "Linares"]
[Date "2019.08.21"]
[Round "4.7"]
[White "Reinaldo Castineira, Roi"]
[Black "Garcia Molla, Victor"]
[Result "1-0"]
[ECO "C00"]
[WhiteElo "2467"]
[BlackElo "2408"]
[Annotator "ChessBase"]
[PlyCount "81"]
[EventDate "2019.08.19"]
[EventType "team-tourn"]
[EventCountry "ESP"]
[SourceTitle "playchess.com"]
[Source "ChessBase"]
[SourceQuality "1"]
[TimeControl "5400+30"]

1. e4 {[%emt 0:00:00]} e6 {[%emt 0:00:00]} 2. d3 {[%emt 0:00:31]} d5 {[%emt 0:00:00]} 3. Qe2 {[%emt 0:00:04]} Nf6 {[%emt 0:05:45]} 4. Nf3 {[%emt 0:00:08]} Be7 {[%emt 0:01:32]} 5. g3 {[%emt 0:00:06]} b5 {[%emt 0:04:13]} 6. e5 {[%emt 0:02:46]} Nfd7 {[%emt 0:00:08]} 7. Bg2 {[%emt 0:00:04]} c5 {[%emt 0:05:14]} 8. O-O {[%emt 0:00:51]} Nc6 {[%emt 0:01:05]} 9. c4 {[%emt 0:04:38]} bxc4 {[%emt 0:02:00]} 10. dxc4 {[%emt 0:00:08]} Ba6 {[%emt 0:00:16]} 11. Na3 {[%emt 0:00:51]} O-O {[%emt 0:08:53]} 12. Rd1 {[%emt 0:06:23]} Qc7 {[%emt 0:09:53]} 13. Bf4 {[%emt 0:02:13]} dxc4 {[%emt 0:00:24]} 14. b3 {[%emt 0:07:57]} Nb6 {[%emt 0:07:17]} 15. bxc4 {[%emt 0:02:14]} Rad8 {[%emt 0:01:08]} 16. Nb5 {[%emt 0:09:57]} Qb8 {[%emt 0:06:24]} 17. Nd6 {[%emt 0:22:35]} Na5 {[%emt 0:01:32]} 18. Bg5 {[%emt 0:08:19]} Qc7 {[%emt 0:07:53]} 19. Bxe7 {[%emt 0:03:19]} Qxe7 {[%emt 0:00:06]} 20. Nd2 {[%emt 0:01:10]} Qc7 {[%emt 0:03:01]} 21. Qg4 {[%emt 0:06:45]} Kh8 {[%emt 0:04:53]} 22. Qh4 {[%emt 0:01:30]} f6 {[%emt 0:09:28]} 23. N2e4 {[%emt 0:04:13]} Naxc4 {[%emt 0:02:02]} 24. Nxc4 {[%emt 0:03:22]} Bxc4 {[%emt 0:04:55]} 25. exf6 {[%emt 0:00:05]} gxf6 {[%emt 0:04:29]} 26. Nxf6 {[%emt 0:01:58]} Bd5 {[%emt 0:01:15]} 27. g4 {[%emt 0:01:54]} Qe7 {[%emt 0:02:04]} 28. g5 {[%emt 0:00:18]} Bxg2 {[%emt 0:00:09]} 29. Kxg2 {[%emt 0:00:17]} Nd5 {[%emt 0:00:08]} 30. Nxd5 {[%emt 0:06:49]} Rxd5 {[%emt 0:00:10]} 31. Rxd5 {[%emt 0:00:29]} exd5 {[%emt 0:00:06]} 32. Qg3 {[%emt 0:00:05]} Qe4+ {[%emt 0:00:36]} 33. Kg1 {[%emt 0:00:24]} d4 {[%emt 0:04:22]} 34. Rc1 {[%emt 0:00:05]} Qd5 {[%emt 0:00:21]} 35. Re1 {[%emt 0:01:49]} c4 {[%emt 0:00:58]} 36. g6 {[%emt 0:00:52]} Rg8 {[%emt 0:01:04]} 37. Re5 {[%emt 0:00:36]} Qd7 {[%emt 0:00:57]} 38. Rh5 {[%emt 0:00:47]} Qe7 {[%emt 0:01:56]} 39. Qe5+ {[%emt 0:01:29]} Rg7 {[%emt 0:00:35]} 40. Rxh7+ {[%emt 0:00:04]} Kg8 {[%emt 0:00:10]} 41. Qb8+ {[%emt 0:00:57]} 1-0

[Event "ESP-chT 2nd Division 2019"]
[Site "Linares"]
[Date "2019.08.21"]
[Round "4.8"]
[White "Barbera Estelles, Rosendo"]
[Black "Laiz Ibanez, Hector"]
[Result "0-1"]
[ECO "B20"]
[WhiteElo "2176"]
[BlackElo "2274"]
[Annotator "NA"]
[PlyCount "76"]
[EventDate "2019.08.19"]
[EventType "team-tourn"]
[EventCountry "ESP"]
[SourceTitle "playchess.com"]
[Source "ChessBase"]
[SourceQuality "1"]
[TimeControl "5400+30"]

1. e4 {[%emt 0:00:00]} c5 {[%emt 0:00:00]} 2. Be2 {[%emt 0:00:23]} Nc6 {[%emt 0:00:05]} 3. f4 {[%emt 0:00:26]} d5 {[%emt 0:00:12]} 4. d3 {[%emt 0:00:36]} e6 {[%emt 0:02:03]} 5. Nf3 {[%emt 0:00:41]} Bd6 {[%emt 0:00:09]} 6. O-O {[%emt 0:01:17]} Nge7 {[%emt 0:00:36]} 7. c3 {[%emt 0:02:57]} f6 {[%emt 0:06:18]} 8. Be3 {[%emt 0:06:25]} Qc7 {[%emt 0:05:52]} 9. g3 {[%emt 0:11:38]} O-O {[%emt 0:07:34]} 10. Na3 {[%emt 0:04:22]} a6 {[%emt 0:00:20]} 11. Nc2 {[%emt 0:01:31]} b5 {[%emt 0:14:57]} 12. Qe1 {[%emt 0:12:13]} Bb7 {[%emt 0:18:18]} 13. Qf2 {[%emt 0:06:58]} e5 {[%emt 0:01:23]} 14. f5 {[%emt 0:14:20]} Nd8 {[%emt 0:00:56]} 15. exd5 {[%emt 0:04:17]} Nxf5 {[%emt 0:03:50]} 16. Nd2 {[%emt 0:01:03]} Nxe3 {[%emt 0:08:45]} 17. Nxe3 {[%emt 0:00:10]} g6 {[%emt 0:04:31]} 18. c4 {[%emt 0:01:01]} f5 {[%emt 0:00:28]} 19. g4 {[%emt 0:07:57]} f4 {[%emt 0:04:28]} 20. Ng2 {[%emt 0:00:34]} e4 {[%emt 0:02:54]} 21. Nxe4 {[%emt 0:02:20]} Be5 {[%emt 0:00:04]} 22. Qh4 {[%emt 0:01:41]} Bxb2 {[%emt 0:07:50]} 23. Rae1 {[%emt 0:00:11]} bxc4 {[%emt 0:07:30]} 24. dxc4 {[%emt 0:00:33]} Ne6 {[%emt 0:00:34]} 25. g5 {[%emt 0:10:37]} Kh8 {[%emt 0:01:16]} 26. Nf6 {[%emt 0:02:22]} Nxg5 {[%emt 0:00:25]} 27. Qxg5 {[%emt 0:03:54]} Bxf6 {[%emt 0:00:14]} 28. Qg4 {[%emt 0:00:14]} Bc8 {[%emt 0:00:57]} 29. Qf3 {[%emt 0:00:09]} Bd4+ {[%emt 0:00:21]} 30. Kh1 {[%emt 0:00:07]} g5 {[%emt 0:01:10]} 31. d6 {[%emt 0:00:52]} Qa7 {[%emt 0:00:18]} 32. Bd3 {[%emt 0:00:27]} Bb7 {[%emt 0:01:03]} 33. Qh5 {[%emt 0:00:15]} Rf7 {[%emt 0:00:17]} 34. Be4 {[%emt 0:01:55]} Bxe4 {[%emt 0:00:20]} 35. Rxe4 {[%emt 0:00:05]} Qd7 {[%emt 0:00:57]} 36. Ne1 {[%emt 0:02:11]} Qb7 {[%emt 0:00:29]} 37. Nf3 {[%emt 0:01:12]} Qxe4 {[%emt 0:00:20]} 38. Qxf7 {[%emt 0:00:34]} Qe2 {[%emt 0:00:11]} 0-1

[Event "ESP-chT 2nd Division 2019"]
[Site "Linares"]
[Date "2019.08.21"]
[Round "4.9"]
[White "Abal Cores, Lucas"]
[Black "Garcia Amoros, Pablo"]
[Result "1-0"]
[ECO "B22"]
[WhiteElo "2290"]
[BlackElo "2101"]
[Annotator "NA"]
[PlyCount "63"]
[EventDate "2019.08.19"]
[EventType "team-tourn"]
[EventCountry "ESP"]
[SourceTitle "playchess.com"]
[Source "ChessBase"]
[SourceQuality "1"]
[TimeControl "5400+30"]

1. e4 {[%emt 0:00:00]} c5 {[%emt 0:00:00]} 2. c3 {[%emt 0:00:00]} d5 {[%emt 0:00:07]} 3. exd5 {[%emt 0:00:00]} Qxd5 {[%emt 0:00:12]} 4. d4 {[%emt 0:00:00]} g6 {[%emt 0:00:24]} 5. Nf3 {[%emt 0:00:28]} Bg7 {[%emt 0:00:37]} 6. Be3 {[%emt 0:00:53]} cxd4 {[%emt 0:01:32]} 7. cxd4 {[%emt 0:00:06]} Nf6 {[%emt 0:01:56]} 8. Nc3 {[%emt 0:00:05]} Qa5 {[%emt 0:00:36]} 9. Be2 {[%emt 0:01:10]} Ne4 {[%emt 0:06:07]} 10. O-O {[%emt 0:00:06]} Nd6 {[%emt 0:01:52]} 11. Rc1 {[%emt 0:05:20]} Nc6 {[%emt 0:02:07]} 12. d5 {[%emt 0:12:46]} Ne5 {[%emt 0:04:17]} 13. Bf4 {[%emt 0:03:21]} Nxf3+ {[%emt 0:05:21]} 14. Bxf3 {[%emt 0:00:31]} O-O {[%emt 0:02:10]} 15. Re1 {[%emt 0:04:12]} Qb4 {[%emt 0:01:18]} 16. Bxd6 {[%emt 0:03:34]} exd6 {[%emt 0:03:40]} 17. Qd2 {[%emt 0:05:45]} Bf5 {[%emt 0:06:32]} 18. a3 {[%emt 0:05:31]} Qb6 {[%emt 0:14:08]} 19. g4 {[%emt 0:05:38]} Bd7 {[%emt 0:00:23]} 20. Re4 {[%emt 0:00:48]} Rfe8 {[%emt 0:01:35]} 21. Rb4 {[%emt 0:01:20]} Qa6 {[%emt 0:11:38]} 22. Ne4 {[%emt 0:12:03]} Rac8 {[%emt 0:02:11]} 23. Rd1 {[%emt 0:07:09]} b5 {[%emt 0:06:28]} 24. g5 {[%emt 0:04:03]} f5 {[%emt 0:14:44]} 25. gxf6 {[%emt 0:02:21]} Bf8 {[%emt 0:00:14]} 26. Ng5 {[%emt 0:09:26]} Re5 {[%emt 0:02:31]} 27. Rh4 {[%emt 0:02:56]} h5 {[%emt 0:03:05]} 28. Ne6 {[%emt 0:04:33]} Kh7 {[%emt 0:00:28]} 29. Qd3 {[%emt 0:01:58]} Kh6 {[%emt 0:01:38]} 30. Be4 {[%emt 0:01:48]} g5 {[%emt 0:06:07]} 31. Rxh5+ {[%emt 0:00:12]} Kxh5 {[%emt 0:00:16]} 32. Qh3# 1-0

[Event "ESP-chT 2nd Division 2019"]
[Site "Linares"]
[Date "2019.08.21"]
[Round "4.10"]
[White "Castellet Menchon, Cora"]
[Black "Dorado Meijide, Andrea"]
[Result "1/2-1/2"]
[ECO "A52"]
[WhiteElo "1866"]
[BlackElo "1762"]
[Annotator "NA"]
[PlyCount "80"]
[EventDate "2019.08.19"]
[EventType "team-tourn"]
[EventCountry "ESP"]
[SourceTitle "playchess.com"]
[Source "ChessBase"]
[SourceQuality "1"]
[TimeControl "5400+30"]

1. d4 {[%emt 0:00:00]} Nf6 {[%emt 0:00:00]} 2. c4 {[%emt 0:00:00]} e5 {[%emt 0:00:08]} 3. dxe5 {[%emt 0:00:00]} Ng4 {[%emt 0:00:09]} 4. Bf4 {[%emt 0:00:52]} g5 {[%emt 0:00:23]} 5. Bg3 {[%emt 0:00:53]} Nc6 {[%emt 0:00:38]} 6. Nf3 {[%emt 0:01:33]} Bg7 {[%emt 0:00:44]} 7. Nc3 {[%emt 0:06:40]} Ngxe5 {[%emt 0:02:11]} 8. e3 {[%emt 0:06:21]} d6 {[%emt 0:03:50]} 9. Nxe5 {[%emt 0:06:47]} Nxe5 {[%emt 0:00:21]} 10. Rc1 {[%emt 0:02:17]} Be6 {[%emt 0:12:26]} 11. Nb5 {[%emt 0:11:24]} O-O {[%emt 0:14:35]} 12. Be2 {[%emt 0:08:14]} f5 {[%emt 0:05:58]} 13. Nd4 {[%emt 0:10:16]} Bd7 {[%emt 0:07:10]} 14. f4 {[%emt 0:09:01]} Ng4 {[%emt 0:06:52]} 15. Bxg4 {[%emt 0:07:09]} fxg4 {[%emt 0:00:08]} 16. O-O {[%emt 0:02:24]} Qe7 {[%emt 0:06:57]} 17. Qd3 {[%emt 0:05:19]} Rae8 {[%emt 0:01:39]} 18. Rce1 {[%emt 0:00:38]} a6 {[%emt 0:05:09]} 19. b4 {[%emt 0:01:06]} c5 {[%emt 0:02:53]} 20. Nc2 {[%emt 0:03:24]} Bf5 {[%emt 0:02:11]} 21. Qd5+ {[%emt 0:05:38]} Kh8 {[%emt 0:02:53]} 22. Rf2 {[%emt 0:04:01]} Bc3 {[%emt 0:02:34]} 23. Rd1 {[%emt 0:03:59]} Bxc2 {[%emt 0:03:06]} 24. Rxc2 {[%emt 0:00:04]} Qxe3+ {[%emt 0:00:10]} 25. Bf2 {[%emt 0:02:11]} Qxf4 {[%emt 0:01:23]} 26. bxc5 {[%emt 0:01:45]} dxc5 {[%emt 0:07:18]} 27. Bxc5 {[%emt 0:00:40]} Re5 {[%emt 0:07:33]} 28. Qd6 {[%emt 0:00:43]} Rfe8 {[%emt 0:01:29]} 29. Bf2 {[%emt 0:00:39]} Re1+ {[%emt 0:02:08]} 30. Bxe1 {[%emt 0:00:31]} Rxe1+ {[%emt 0:00:14]} 31. Rxe1 {[%emt 0:00:10]} Qxd6 {[%emt 0:00:39]} 32. Rxc3 {[%emt 0:00:15]} Qd4+ {[%emt 0:00:02]} 33. Rce3 {[%emt 0:00:08]} Qxc4 {[%emt 0:00:51]} 34. Re7 {[%emt 0:00:56]} Qc5+ {[%emt 0:00:44]} 35. Kf1 {[%emt 0:00:35]} Qf5+ {[%emt 0:00:48]} 36. Kg1 {[%emt 0:00:12]} Qc5+ {[%emt 0:00:13]} 37. Kh1 {[%emt 0:00:27]} Qb4 {[%emt 0:00:31]} 38. R7e4 {[%emt 0:00:56]} Qd2 {[%emt 0:00:49]} 39. Re7 {[%emt 0:00:33]} Qb4 {[%emt 0:00:06]} 40. R7e4 Qc5 1/2-1/2

[Event "ESP-chT 2nd Division 2019"]
[Site "Linares"]
[Date "2019.08.21"]
[Round "4.11"]
[White "Portela Peleteiro, Alberto"]
[Black "Gamundi Salamanca, Antonio"]
[Result "1/2-1/2"]
[ECO "C11"]
[WhiteElo "2375"]
[BlackElo "2444"]
[Annotator "NA"]
[PlyCount "71"]
[EventDate "2019.08.19"]
[EventType "team-tourn"]
[EventCountry "ESP"]
[SourceTitle "playchess.com"]
[Source "ChessBase"]
[SourceQuality "1"]
[TimeControl "5400+30"]

1. e4 {[%emt 0:00:00]} e6 {[%emt 0:00:00]} 2. d4 {[%emt 0:00:57]} d5 {[%emt 0:00:00]} 3. Nc3 {[%emt 0:01:20]} Nf6 {[%emt 0:00:00]} 4. e5 {[%emt 0:01:17]} Nfd7 {[%emt 0:00:08]} 5. Nf3 {[%emt 0:00:07]} c5 {[%emt 0:00:44]} 6. dxc5 {[%emt 0:00:05]} Nc6 {[%emt 0:00:04]} 7. Bf4 {[%emt 0:00:10]} Bxc5 {[%emt 0:00:05]} 8. Bd3 {[%emt 0:00:19]} f6 {[%emt 0:06:28]} 9. exf6 {[%emt 0:00:04]} Qxf6 {[%emt 0:00:05]} 10. Bg3 {[%emt 0:00:03]} O-O {[%emt 0:00:29]} 11. O-O {[%emt 0:00:08]} a6 {[%emt 0:01:55]} 12. Qe2 {[%emt 0:09:31]} Nd4 {[%emt 0:11:48]} 13. Nxd4 {[%emt 0:00:07]} Bxd4 {[%emt 0:00:02]} 14. Rae1 {[%emt 0:05:14]} Nc5 {[%emt 0:06:53]} 15. Be5 {[%emt 0:11:23]} Bxe5 {[%emt 0:00:43]} 16. Qxe5 {[%emt 0:00:08]} Qxe5 {[%emt 0:04:45]} 17. Rxe5 {[%emt 0:00:23]} Nxd3 {[%emt 0:00:32]} 18. cxd3 {[%emt 0:00:12]} Bd7 {[%emt 0:00:08]} 19. Ne2 {[%emt 0:04:33]} Rac8 {[%emt 0:00:51]} 20. Nd4 {[%emt 0:03:16]} Rf4 {[%emt 0:02:31]} 21. Nxe6 {[%emt 0:00:07]} Bxe6 {[%emt 0:00:04]} 22. Rxe6 {[%emt 0:00:05]} Rc2 {[%emt 0:00:08]} 23. Rb6 {[%emt 0:00:04]} Rf7 {[%emt 0:01:31]} 24. g3 {[%emt 0:22:52]} Rd2 {[%emt 0:06:47]} 25. Kg2 {[%emt 0:02:00]} h6 {[%emt 0:00:42]} 26. Kh3 {[%emt 0:12:55]} Rxd3 {[%emt 0:05:24]} 27. f4 {[%emt 0:00:11]} Rd7 {[%emt 0:04:07]} 28. Rf2 {[%emt 0:02:40]} d4 {[%emt 0:10:39]} 29. Re6 {[%emt 0:00:12]} Rd1 {[%emt 0:01:46]} 30. Ree2 {[%emt 0:00:11]} Kf7 {[%emt 0:00:59]} 31. Kg2 {[%emt 0:02:57]} d3 {[%emt 0:13:31]} 32. Rd2 {[%emt 0:00:16]} Re1 {[%emt 0:00:20]} 33. Rf1 {[%emt 0:05:30]} Re2+ {[%emt 0:05:02]} 34. Rf2 {[%emt 0:00:00]} Re1 {[%emt 0:00:22]} 35. Rf1 {[%emt 0:00:02]} Re2+ {[%emt 0:00:06]} 36. Rf2 {[%emt 0:00:08]} 1/2-1/2

[Event "ESP-chT 2nd Division 2019"]
[Site "Linares"]
[Date "2019.08.21"]
[Round "4.13"]
[White "Garcia Castro, Pablo"]
[Black "Gavilan Diaz, Mario"]
[Result "1/2-1/2"]
[ECO "A13"]
[WhiteElo "2327"]
[BlackElo "2318"]
[Annotator "NA"]
[PlyCount "79"]
[EventDate "2019.08.19"]
[EventType "team-tourn"]
[EventCountry "ESP"]
[SourceTitle "playchess.com"]
[Source "ChessBase"]
[SourceQuality "1"]
[TimeControl "5400+30"]

1. c4 {[%emt 0:00:00]} e6 {[%emt 0:02:27]} 2. e3 {[%emt 0:00:11]} d5 {[%emt 0:01:39]} 3. Nc3 {[%emt 0:00:14]} Nf6 {[%emt 0:01:49]} 4. Nf3 {[%emt 0:00:30]} dxc4 {[%emt 0:06:43]} 5. Bxc4 {[%emt 0:00:30]} a6 {[%emt 0:00:05]} 6. d4 {[%emt 0:05:51]} b5 {[%emt 0:00:39]} 7. Bd3 {[%emt 0:13:10]} Bb7 {[%emt 0:01:28]} 8. O-O {[%emt 0:00:10]} Nbd7 {[%emt 0:00:50]} 9. e4 {[%emt 0:08:10]} b4 {[%emt 0:08:06]} 10. e5 {[%emt 0:00:12]} bxc3 {[%emt 0:01:48]} 11. exf6 {[%emt 0:00:13]} cxb2 {[%emt 0:19:15]} 12. Bxb2 {[%emt 0:17:16]} gxf6 {[%emt 0:04:37]} 13. Re1 {[%emt 0:14:10]} Nb6 {[%emt 0:02:00]} 14. Nh4 {[%emt 0:09:55]} Rg8 {[%emt 0:05:49]} 15. Rc1 {[%emt 0:12:53]} Be7 {[%emt 0:12:37]} 16. g3 {[%emt 0:10:44]} Rg5 {[%emt 0:17:53]} 17. f4 {[%emt 0:00:15]} Rd5 {[%emt 0:02:11]} 18. Nf3 {[%emt 0:03:27]} c5 {[%emt 0:02:05]} 19. Be4 {[%emt 0:00:14]} f5 {[%emt 0:00:37]} 20. Bxd5 {[%emt 0:00:10]} Qxd5 {[%emt 0:00:06]} 21. Re3 {[%emt 0:00:43]} c4 {[%emt 0:04:14]} 22. Ba3 {[%emt 0:00:36]} Bd8 {[%emt 0:02:10]} 23. Bc5 {[%emt 0:00:55]} Bc6 {[%emt 0:00:32]} 24. Qc2 {[%emt 0:00:45]} Bb5 {[%emt 0:00:46]} 25. Bxb6 {[%emt 0:00:22]} Bxb6 {[%emt 0:00:02]} 26. a4 {[%emt 0:00:23]} Bxd4 {[%emt 0:00:49]} 27. Nxd4 {[%emt 0:00:01]} Qxd4 {[%emt 0:00:01]} 28. Qf2 {[%emt 0:00:14]} Kf8 {[%emt 0:01:16]} 29. axb5 {[%emt 0:00:05]} axb5 {[%emt 0:00:01]} 30. Re5 {[%emt 0:00:29]} Qd7 {[%emt 0:01:42]} 31. Rb1 {[%emt 0:01:31]} Ra5 {[%emt 0:00:36]} 32. Re2 {[%emt 0:00:24]} Kg8 {[%emt 0:00:32]} 33. Rd2 {[%emt 0:00:09]} Qc7 {[%emt 0:00:19]} 34. Qd4 {[%emt 0:00:11]} Ra8 {[%emt 0:00:37]} 35. Rxb5 {[%emt 0:00:37]} c3 {[%emt 0:00:05]} 36. Rc2 {[%emt 0:00:34]} Rd8 {[%emt 0:00:57]} 37. Rxc3 {[%emt 0:01:18]} Qe7 {[%emt 0:00:01]} 38. Qe5 {[%emt 0:00:26]} Rd1+ {[%emt 0:00:51]} 39. Kg2 {[%emt 0:00:09]} Rd8 {[%emt 0:00:34]} 40. Rb8 {[%emt 0:00:20]} 1/2-1/2

[Event "ESP-chT 2nd Division 2019"]
[Site "Linares"]
[Date "2019.08.21"]
[Round "4.14"]
[White "Perera Borrego, Maria Adela"]
[Black "Rivera, Daniel"]
[Result "1-0"]
[ECO "A48"]
[WhiteElo "2186"]
[BlackElo "2321"]
[Annotator "NA"]
[PlyCount "65"]
[EventDate "2019.08.19"]
[EventType "team-tourn"]
[EventCountry "ESP"]
[SourceTitle "playchess.com"]
[Source "ChessBase"]
[SourceQuality "1"]
[TimeControl "5400+30"]

1. d4 {[%emt 0:00:00]} Nf6 {[%emt 0:00:42]} 2. Nf3 {[%emt 0:00:00]} g6 {[%emt 0:00:23]} 3. c4 {[%emt 0:00:00]} Bg7 {[%emt 0:00:21]} 4. Nc3 {[%emt 0:00:06]} O-O {[%emt 0:03:15]} 5. e4 {[%emt 0:00:15]} d6 {[%emt 0:00:07]} 6. h3 {[%emt 0:00:15]} c5 {[%emt 0:03:16]} 7. d5 {[%emt 0:01:52]} e6 {[%emt 0:04:52]} 8. Bd3 {[%emt 0:04:15]} exd5 {[%emt 0:00:30]} 9. exd5 {[%emt 0:00:08]} Re8+ {[%emt 0:04:44]} 10. Be3 {[%emt 0:00:22]} Bf5 {[%emt 0:09:15]} 11. O-O {[%emt 0:07:06]} Bxd3 {[%emt 0:18:19]} 12. Qxd3 {[%emt 0:00:10]} Nfd7 {[%emt 0:00:48]} 13. Rad1 {[%emt 0:04:20]} Ne5 {[%emt 0:03:48]} 14. Nxe5 {[%emt 0:00:15]} Bxe5 {[%emt 0:00:13]} 15. f4 {[%emt 0:09:34]} Bg7 {[%emt 0:00:13]} 16. Bf2 {[%emt 0:01:20]} Nd7 {[%emt 0:04:07]} 17. Nb5 {[%emt 0:06:42]} Nf6 {[%emt 0:08:47]} 18. Bh4 {[%emt 0:06:13]} Qb6 {[%emt 0:12:35]} 19. f5 {[%emt 0:10:33]} Nd7 {[%emt 0:07:35]} 20. a4 {[%emt 0:04:57]} Bf8 {[%emt 0:12:03]} 21. Qd2 {[%emt 0:03:54]} a5 {[%emt 0:03:30]} 22. Qf4 {[%emt 0:08:29]} Ne5 {[%emt 0:00:32]} 23. Bf6 {[%emt 0:08:40]} Re7 {[%emt 0:00:51]} 24. h4 {[%emt 0:03:13]} Rae8 {[%emt 0:00:38]} 25. h5 {[%emt 0:00:20]} Nd7 {[%emt 0:00:15]} 26. Bxe7 {[%emt 0:02:42]} Rxe7 {[%emt 0:00:04]} 27. fxg6 {[%emt 0:00:21]} Ne5 {[%emt 0:01:04]} 28. gxh7+ {[%emt 0:01:39]} Kxh7 {[%emt 0:00:01]} 29. Qf5+ {[%emt 0:00:34]} Kg8 {[%emt 0:00:33]} 30. Qg5+ {[%emt 0:01:51]} Kh7 {[%emt 0:00:53]} 31. Rf6 {[%emt 0:01:16]} Re8 {[%emt 0:00:02]} 32. Rdf1 {[%emt 0:00:30]} Qd8 {[%emt 0:00:12]} 33. Nxd6 {[%emt 0:05:22]} 1-0